bitfinex/quotes_BTCUSD_20230831
["timestamp","ask_amount","ask_price","bid_price","bid_amount"]
[1693520134148,0.02045619,26054.0,26053.0,3.37036479]
[1693520134300,0.02045619,26054.0,26053.0,3.27822784]
[1693520134477,0.02045619,26054.0,26053.0,3.27426784]
[1693520134685,0.02045619,26054.0,26053.0,3.28758784]
[1693520134886,0.02045619,26054.0,26053.0,3.27330784]
[1693520135086,0.02045619,26054.0,26053.0,3.27522784]
[1693520135319,0.02045619,26054.0,26053.0,3.26358784]
[1693520135512,0.02045619,26054.0,26053.0,3.26202784]
[1693520135715,0.02045619,26054.0,26053.0,3.26718784]
[1693520135913,0.02045619,26054.0,26053.0,3.24534784]
[1693520136088,0.01545619,26054.0,26053.0,3.24354784]
[1693520136293,0.01545619,26054.0,26053.0,2.61048479]
[1693520136493,0.01545619,26054.0,26053.0,2.25522784]
[1693520136691,0.01545619,26054.0,26053.0,2.27166784]
[1693520136944,0.01545619,26054.0,26053.0,2.27490784]
[1693520137144,0.01545619,26054.0,26053.0,2.27070784]
[1693520137357,0.01545619,26054.0,26053.0,2.26722784]
[1693520137560,0.70397037,26061.0,26056.0,0.02]
[1693520137766,0.20397766,26059.0,26056.0,0.98276378]
[1693520137970,0.20397766,26059.0,26056.0,0.02]
[1693520138377,0.20397766,26059.0,26057.0,0.00029201]
[1693520139727,0.20397766,26059.0,26057.0,0.03429201]
[1693520140472,0.20397766,26059.0,26057.0,0.06429201]
[1693520141323,1.27956437,26061.0,26057.0,0.06429201]
[1693520142086,1.27956437,26061.0,26057.0,0.03429201]
[1693520142290,0.70397037,26061.0,26057.0,0.00029201]
[1693520142606,0.91660731,26061.0,26057.0,0.00829201]
[1693520142809,0.86660731,26061.0,26057.0,0.00829201]
[1693520143080,0.92351894,26061.0,26057.0,0.00829201]
[1693520143398,0.22865403,26060.0,26057.0,0.01329201]
[1693520144250,0.22865403,26060.0,26057.0,0.00829201]
[1693520144447,0.22865403,26060.0,26057.0,0.02529201]
[1693520144972,0.22865403,26060.0,26057.0,0.01729201]
[1693520145145,0.22865403,26060.0,26057.0,0.03829201]
[1693520146475,0.22865403,26060.0,26057.0,0.61394901]
[1693520147130,0.07839637,26061.0,26057.0,0.61394901]
[1693520147337,0.07839637,26061.0,26059.0,0.575616]
[1693520147338,0.05839637,26061.0,26059.0,0.575616]
[1693520147541,0.05839637,26061.0,26059.0,2.11393478]
[1693520147742,0.07839637,26061.0,26059.0,2.11393478]
[1693520147971,0.05839637,26061.0,26059.0,2.11393478]
[1693520148330,0.05839637,26061.0,26060.0,1.15147848]
[1693520149684,0.05839637,26061.0,26060.0,1.53856526]
[1693520149887,0.05839637,26061.0,26060.0,1.54656526]
[1693520150092,0.05839637,26061.0,26060.0,2.12215926]
[1693520150296,0.05839637,26061.0,26060.0,2.16215926]
[1693520150848,0.05839637,26061.0,26060.0,2.16715926]
[1693520151204,0.05839637,26061.0,26060.0,2.16215926]
[1693520151381,0.05839637,26061.0,26060.0,1.60356526]
[1693520151582,0.05839637,26061.0,26060.0,1.01997126]
[1693520151995,0.05839637,26061.0,26060.0,1.03997126]
[1693520152202,0.05839637,26061.0,26060.0,1.01997126]
[1693520152583,0.05839637,26061.0,26060.0,1.63256526]
[1693520153025,0.05839637,26061.0,26060.0,1.59556526]
[1693520153439,0.05839637,26061.0,26060.0,0.48137726]
[1693520153651,0.05839637,26061.0,26060.0,1.05697126]
[1693520153882,0.05839637,26061.0,26060.0,0.46137726]
[1693520154320,0.05839637,26061.0,26060.0,1.03697126]
[1693520155570,0.05839637,26061.0,26060.0,0.46137726]
[1693520155767,0.25444442,26061.0,26060.0,0.07429048]
[1693520157045,0.31570656,26061.0,26060.0,0.07429048]
[1693520159061,0.11965851,26061.0,26060.0,0.07429048]
[1693520160489,1.44579836,26061.0,26060.0,0.07429048]
[1693520160864,2.22625427,26061.0,26060.0,0.07429048]
[1693520161359,2.22625427,26061.0,26060.0,0.037]
[1693520161560,2.22625427,26061.0,26060.0,0.058]
[1693520162002,2.22425427,26061.0,26060.0,0.058]
[1693520162618,2.22425427,26061.0,26060.0,0.021]
[1693520163017,1.98227451,26061.0,26060.0,0.039]
[1693520163251,2.18700441,26061.0,26060.0,0.039]
[1693520165149,2.1872608,26061.0,26060.0,0.039]
[1693520166319,1.6116888,26061.0,26060.0,0.039]
[1693520168772,1.4069589,26061.0,26060.0,0.039]
[1693520168980,1.65279062,26061.0,26060.0,0.039]
[1693520169375,1.4069589,26061.0,26060.0,0.039]
[1693520170648,2.0425309,26061.0,26060.0,0.039]
[1693520171658,2.32242516,26061.0,26060.0,0.039]
[1693520171854,1.74685316,26061.0,26060.0,0.039]
[1693520172059,1.4667589,26061.0,26060.0,0.039]
[1693520172274,1.73779599,26061.0,26060.0,0.039]
[1693520172634,2.0423309,26061.0,26060.0,0.039]
[1693520172857,2.92519395,26061.0,26060.0,0.039]
[1693520173093,3.22519395,26061.0,26060.0,0.039]
[1693520173298,3.36315835,26061.0,26060.0,0.039]
[1693520173699,3.27118208,26061.0,26060.0,0.021]
[1693520173919,3.31717022,26061.0,26060.0,0.021]
[1693520174150,3.62619294,26061.0,26060.0,0.021]
[1693520174355,0.04,26057.0,26052.0,0.02098082]
[1693520174557,1.48538285,26056.0,26052.0,0.02098082]
[1693520174799,0.28023108,26055.0,26052.0,0.02098082]
[1693520175164,0.06126214,26054.0,26052.0,0.00098082]
[1693520175550,0.06126214,26054.0,26052.0,0.08]
[1693520175954,0.06126214,26054.0,26052.0,0.132]
[1693520176182,0.06126214,26054.0,26052.0,0.111]
[1693520176354,0.06126214,26054.0,26052.0,0.595769]
[1693520176556,0.06126214,26054.0,26052.0,0.655769]
[1693520176759,0.79467694,26055.0,26052.0,0.692769]
[1693520176997,1.45038494,26055.0,26052.0,0.037]
[1693520177216,0.06149219,26054.0,26052.0,0.037]
[1693520177549,1.45038494,26055.0,26052.0,0.037]
[1693520177550,0.655708,26055.0,26052.0,0.037]
[1693520177945,0.655708,26055.0,26052.0,0.074]
[1693520178718,0.655708,26055.0,26051.0,1.151563]
[1693520179160,0.655708,26055.0,26052.0,0.066]
[1693520179350,0.24614613,26054.0,26052.0,0.066]
[1693520179527,0.24614613,26054.0,26052.0,0.035]
[1693520180610,0.24614613,26054.0,26052.0,0.072]
[1693520180799,0.23030993,26053.0,26052.0,0.037]
[1693520180997,0.2917836,26053.0,26052.0,0.037]
[1693520181448,0.29185208,26053.0,26052.0,0.037]
[1693520181834,0.15366612,26053.0,26052.0,0.074]
[1693520182066,0.15366612,26053.0,26051.0,0.575792]
[1693520182067,0.24549469,26053.0,26051.0,0.575792]
[1693520182291,0.13807715,26052.0,26051.0,0.575792]
[1693520182880,0.49276185,26052.0,26051.0,0.575792]
[1693520183503,0.40072215,26052.0,26051.0,0.575792]
[1693520183679,0.40072215,26052.0,26051.0,0.612792]
[1693520183680,0.49275425,26052.0,26051.0,0.612792]
[1693520183883,0.58467469,26052.0,26051.0,0.612792]
[1693520184084,0.58467469,26052.0,26051.0,0.037]
[1693520185533,0.58467469,26052.0,26051.0,0.074]
[1693520186235,0.44659754,26052.0,26051.0,0.074]
[1693520186735,0.58461623,26052.0,26051.0,0.074]
[1693520186940,2.29073882,26052.0,26051.0,0.074]
[1693520187123,2.0606108,26052.0,26051.0,0.074]
[1693520187886,2.0606108,26052.0,26051.0,0.037]
[1693520188087,2.29758506,26052.0,26051.0,0.04]
[1693520188289,1.99372592,26052.0,26051.0,0.003]
[1693520188511,0.02,26051.0,26050.0,0.01]
[1693520188710,2.34074233,26051.0,26050.0,0.01]
[1693520189330,2.15676437,26051.0,26050.0,0.01]
[1693520189533,3.00765115,26051.0,26050.0,0.01]
[1693520189732,3.15573092,26051.0,26050.0,0.01]
[1693520189933,3.46973092,26051.0,26050.0,0.014]
[1693520190548,3.69956149,26051.0,26050.0,0.014]
[1693520191093,3.8834252,26051.0,26050.0,0.014]
[1693520191218,3.10057072,26051.0,26050.0,0.014]
[1693520191430,2.74108994,26051.0,26050.0,0.014]
[1693520192064,2.53059781,26051.0,26050.0,0.014]
[1693520192500,2.76053884,26051.0,26050.0,0.014]
[1693520192702,2.62265364,26051.0,26050.0,0.014]
[1693520193523,2.39271261,26051.0,26050.0,0.014]
[1693520193753,2.56204579,26051.0,26050.0,0.014]
[1693520194278,2.30079192,26051.0,26050.0,0.014]
[1693520194630,2.54678386,26051.0,26050.0,0.014]
[1693520195348,2.55025014,26051.0,26050.0,0.014]
[1693520195773,2.30079192,26051.0,26050.0,0.014]
[1693520196822,2.68806609,26051.0,26050.0,0.014]
[1693520197035,2.30079192,26051.0,26050.0,0.014]
[1693520197241,2.70459192,26051.0,26050.0,0.014]
[1693520197958,3.0916787,26051.0,26050.0,0.014]
[1693520201620,3.31675476,26051.0,26050.0,0.014]
[1693520201823,3.0916787,26051.0,26050.0,0.014]
[1693520203221,3.29776544,26051.0,26050.0,0.014]
[1693520204457,3.32928363,26051.0,26050.0,0.014]
[1693520209485,3.32928363,26051.0,26050.0,0.014]
[1693520211041,3.32213898,26051.0,26050.0,0.014]
[1693520211255,1.39651711,26051.0,26050.0,0.014]
[1693520211460,0.07551292,26051.0,26050.0,0.589815]
[1693520211665,0.014,26051.0,26050.0,0.589815]
[1693520212139,0.007,26051.0,26050.0,0.012]
[1693520212338,0.20546433,26051.0,26050.0,0.01]
[1693520212542,0.21246433,26051.0,26050.0,0.01]
[1693520212742,0.21746433,26051.0,26050.0,0.011]
[1693520213072,0.22046433,26051.0,26050.0,0.011]
[1693520214026,0.015,26051.0,26050.0,0.011]
[1693520214226,0.015,26051.0,26050.0,0.01]
[1693520214227,0.003,26051.0,26050.0,0.01]
[1693520214446,0.003,26051.0,26050.0,0.011]
[1693520215370,0.003,26051.0,26050.0,0.586815]
[1693520215815,0.003,26051.0,26050.0,0.011]
[1693520218841,0.003,26051.0,26050.0,0.01]
[1693520219178,0.004,26051.0,26050.0,0.024]
[1693520219370,0.001,26051.0,26050.0,1.17563]
[1693520219620,0.001,26051.0,26050.0,1.751445]
[1693520220759,0.001,26051.0,26050.0,1.18463]
[1693520222893,0.001,26051.0,26050.0,2.34543178]
[1693520223090,0.001,26051.0,26050.0,2.42373178]
[1693520223339,0.001,26051.0,26050.0,2.42133178]
[1693520223535,0.001,26051.0,26050.0,2.42109178]
[1693520223741,0.001,26051.0,26050.0,2.40727178]
[1693520223940,0.11192069,26056.0,26053.0,0.08]
[1693520224146,0.06140112,26055.0,26053.0,0.655737]
[1693520224523,0.02,26056.0,26053.0,0.655737]
[1693520225094,0.21752416,26055.0,26053.0,0.655737]
[1693520225412,0.02,26056.0,26053.0,0.655737]
[1693520226072,0.02,26056.0,26053.0,1.231486]
[1693520226691,0.02,26056.0,26053.0,1.242486]
[1693520227496,0.11196332,26057.0,26053.0,1.242486]
[1693520227697,0.24990831,26058.0,26055.0,0.08]
[1693520227900,0.24990831,26058.0,26056.0,0.06]
[1693520227901,0.68760532,26058.0,26056.0,0.06]
[1693520228464,0.11196332,26058.0,26056.0,0.06]
[1693520229520,0.002,26057.0,26056.0,0.06]
[1693520230075,0.11196332,26058.0,26056.0,0.06]
[1693520230415,0.20230201,26057.0,26056.0,0.061]
[1693520230814,0.20230201,26057.0,26056.0,0.06]
[1693520231218,0.20230201,26057.0,26056.0,0.071]
[1693520233127,0.20230201,26057.0,26056.0,0.06]
[1693520233331,0.20430201,26057.0,26056.0,0.084]
[1693520236373,1.44755933,26057.0,26056.0,0.024]
[1693520236775,1.52595519,26057.0,26056.0,0.024]
[1693520236951,1.52595519,26057.0,26056.0,0.084]
[1693520237153,1.58521457,26057.0,26056.0,0.06]
[1693520237369,1.58621457,26057.0,26056.0,0.06]
[1693520238004,1.58621457,26057.0,26055.0,0.06]
[1693520238201,0.1179,26056.0,26055.0,0.08]
[1693520238467,0.693583,26056.0,26055.0,0.08]
[1693520239272,0.1179,26056.0,26055.0,0.08]
[1693520240209,0.1179,26056.0,26055.0,0.091]
[1693520241595,0.03138385,26057.0,26055.0,0.091]
[1693520242006,1.559002,26058.0,26056.0,0.06]
[1693520242598,0.23991052,26057.0,26056.0,0.06]
[1693520242800,0.30213033,26057.0,26056.0,0.06]
[1693520243427,0.30113033,26057.0,26056.0,0.06]
[1693520243803,0.30113033,26057.0,26056.0,0.061]
[1693520244307,0.87679133,26057.0,26056.0,0.061]
[1693520245177,0.87679133,26057.0,26056.0,0.06]
[1693520245509,0.87779133,26057.0,26056.0,0.06]
[1693520249724,1.45345233,26057.0,26056.0,0.06]
[1693520250223,1.44845233,26057.0,26056.0,0.06]
[1693520251309,0.06,26055.0,26052.0,0.02098545]
[1693520251484,0.1379,26053.0,26052.0,0.06098545]
[1693520251682,2.08120152,26053.0,26052.0,0.06098545]
[1693520251908,1.92636681,26053.0,26052.0,0.06]
[1693520252315,2.75725359,26053.0,26052.0,0.06]
[1693520252515,1.03000659,26053.0,26052.0,0.085]
[1693520252743,2.75725359,26053.0,26052.0,0.085]
[1693520252937,2.75725359,26053.0,26052.0,0.06]
[1693520253919,2.88904436,26053.0,26052.0,0.06]
[1693520254121,2.89904436,26053.0,26052.0,0.063]
[1693520254330,2.85921691,26053.0,26052.0,0.063]
[1693520255709,2.9971619,26053.0,26052.0,0.063]
[1693520256319,3.2711373,26053.0,26052.0,0.063]
[1693520256517,3.13319231,26053.0,26052.0,0.063]
[1693520256718,3.17917398,26053.0,26052.0,0.063]
[1693520257458,3.04122899,26053.0,26052.0,0.063]
[1693520257694,1.21691094,26053.0,26052.0,0.063]
[1693520258558,1.17088655,26053.0,26052.0,0.063]
[1693520259044,1.07884421,26053.0,26052.0,0.063]
[1693520259878,0.07884421,26053.0,26052.0,0.063]
[1693520260313,0.19674421,26053.0,26052.0,0.063]
[1693520260542,0.77249321,26053.0,26052.0,0.063]
[1693520260968,0.92459482,26053.0,26052.0,0.063]
[1693520261206,0.06005927,26053.0,26052.0,0.063]
[1693520261421,0.24994234,26054.0,26053.0,0.06]
[1693520261631,0.30999996,26054.0,26053.0,0.06]
[1693520262691,0.31199996,26054.0,26053.0,0.063]
[1693520263725,0.44006669,26054.0,26053.0,0.063]
[1693520263876,0.40006669,26054.0,26053.0,0.063]
[1693520264125,0.08404234,26054.0,26053.0,0.658749]
[1693520264617,0.08204234,26054.0,26053.0,0.655749]
[1693520264828,0.08404234,26054.0,26053.0,0.083]
[1693520265228,0.08204234,26054.0,26053.0,0.08]
[1693520265451,0.22010907,26054.0,26053.0,0.08]
[1693520265628,0.22210907,26054.0,26053.0,0.082]
[1693520266125,0.22010907,26054.0,26053.0,0.08]
[1693520266361,0.08204234,26054.0,26053.0,0.085]
[1693520266719,0.13806673,26054.0,26053.0,0.085]
[1693520268741,0.32215571,26054.0,26053.0,0.085]
[1693520269537,0.13806673,26054.0,26053.0,0.085]
[1693520269878,0.18408898,26054.0,26053.0,0.085]
[1693520271187,0.47425514,26054.0,26053.0,0.085]
[1693520271387,0.24414392,26054.0,26053.0,0.085]
[1693520271607,0.18408898,26054.0,26053.0,0.085]
[1693520272011,0.32220804,26054.0,26053.0,1.236498]
[1693520272207,0.32220804,26054.0,26053.0,1.256498]
[1693520272208,0.13811906,26054.0,26053.0,1.256498]
[1693520272596,0.13811906,26054.0,26053.0,1.832247]
[1693520273566,0.13811906,26054.0,26053.0,1.256498]
[1693520278489,0.23019485,26054.0,26053.0,1.256498]
[1693520280437,0.23019485,26054.0,26053.0,1.832247]
[1693520281580,0.09207579,26054.0,26053.0,1.832247]
[1693520282255,0.09207579,26054.0,26053.0,1.256498]
[1693520283720,0.09206817,26054.0,26053.0,1.256498]
[1693520283933,0.09206817,26054.0,26053.0,1.832247]
[1693520284136,0.23017042,26056.0,26054.0,0.12]
[1693520284362,0.09206817,26056.0,26055.0,2.78990678]
[1693520284624,0.09206817,26057.0,26055.0,2.98028678]
[1693520284884,0.09206817,26058.0,26057.0,0.1]
[1693520285165,0.09206817,26058.0,26057.0,2.43186144]
[1693520285359,0.09206817,26059.0,26058.0,1.331276]
[1693520285558,0.09206817,26059.0,26058.0,2.41190078]
[1693520285771,0.13810225,26060.0,26058.0,2.47976078]
[1693520285772,0.23017042,26060.0,26058.0,2.47976078]
[1693520285978,0.23017042,26060.0,26059.0,0.38708678]
[1693520286100,0.3221483,26060.0,26059.0,0.1]
[1693520286299,0.3221483,26060.0,26059.0,0.675616]
[1693520286524,0.18413634,26060.0,26059.0,0.675616]
[1693520286724,0.13798012,26060.0,26059.0,0.675616]
[1693520287129,0.13797421,26060.0,26059.0,0.675616]
[1693520287805,0.13797421,26060.0,26059.0,0.705616]
[1693520288288,0.13797421,26060.0,26059.0,0.09]
[1693520288289,0.65213139,26060.0,26059.0,0.09]
[1693520288604,1.9047265,26060.0,26059.0,0.09]
[1693520289139,1.9047265,26060.0,26059.0,0.06]
[1693520289460,1.9067265,26060.0,26059.0,0.06]
[1693520290620,2.3105265,26060.0,26059.0,0.06]
[1693520291286,0.4438,26059.0,26057.0,0.06]
[1693520291496,1.9048585,26058.0,26057.0,0.06]
[1693520292500,2.3086585,26058.0,26057.0,0.06]
[1693520293714,2.3176585,26058.0,26057.0,0.061]
[1693520293914,2.70493267,26058.0,26057.0,0.061]
[1693520294262,2.3376585,26058.0,26057.0,0.061]
[1693520294888,2.58682622,26058.0,26057.0,0.061]
[1693520295774,1.60738822,26058.0,26057.0,0.063]
[1693520295990,1.59238822,26058.0,26057.0,0.063]
[1693520297200,1.57238822,26058.0,26057.0,0.063]
[1693520297539,1.3232205,26058.0,26057.0,0.063]
[1693520297941,2.2064978,26058.0,26057.0,0.063]
[1693520298143,1.98000153,26058.0,26057.0,0.003]
[1693520298363,2.82923016,26058.0,26057.0,0.003]
[1693520298567,3.30569371,26058.0,26057.0,0.003]
[1693520301044,3.29171093,26058.0,26057.0,0.003]
[1693520303292,1.26598367,26058.0,26057.0,0.003]
[1693520303492,0.44338002,26058.0,26057.0,0.003]
[1693520303695,0.65347083,26058.0,26057.0,0.003]
[1693520303904,1.20910883,26058.0,26057.0,0.003]
[1693520304126,0.63347083,26058.0,26057.0,0.063]
[1693520304328,1.82474683,26058.0,26057.0,0.003]
[1693520304583,2.17029402,26058.0,26057.0,0.003]
[1693520304790,2.53720964,26058.0,26057.0,0.003]
[1693520305217,2.17029402,26058.0,26057.0,0.003]
[1693520306737,1.59465602,26058.0,26057.0,0.003]
[1693520308263,1.01901802,26058.0,26057.0,0.003]
[1693520308629,0.28548002,26058.0,26057.0,0.063]
[1693520308807,0.19312686,26058.0,26057.0,0.063]
[1693520309490,0.33122166,26058.0,26057.0,0.063]
[1693520309700,0.32222166,26058.0,26057.0,0.062]
[1693520309914,0.33122166,26058.0,26057.0,0.061]
[1693520310116,0.1470948,26058.0,26057.0,0.656661]
[1693520310412,0.23015271,26058.0,26057.0,1.231322]
[1693520310836,0.09205791,26058.0,26057.0,1.231322]
[1693520311017,1.59139766,26058.0,26057.0,0.06]
[1693520311365,1.55939188,26058.0,26057.0,0.06]
[1693520311738,1.56539188,26058.0,26057.0,0.06]
[1693520311942,1.8390773,26058.0,26057.0,0.06]
[1693520312178,1.56539188,26058.0,26057.0,0.06]
[1693520312358,1.79259379,26058.0,26057.0,0.06]
[1693520312707,1.78550135,26058.0,26057.0,0.06]
[1693520313770,1.55533401,26058.0,26057.0,0.06]
[1693520314802,1.3281321,26058.0,26057.0,0.06]
[1693520315223,1.60631622,26058.0,26057.0,0.06]
[1693520316087,1.76941622,26058.0,26057.0,0.06]
[1693520317076,0.45504022,26058.0,26057.0,0.06]
[1693520317743,1.03067822,26058.0,26057.0,0.06]
[1693520318477,1.9037701,26058.0,26057.0,0.06]
[1693520318676,2.09320274,26058.0,26055.0,0.06]
[1693520318878,0.34808403,26056.0,26055.0,0.08]
[1693520319077,2.13518157,26056.0,26055.0,0.08]
[1693520319543,2.29038157,26056.0,26055.0,0.08]
[1693520319957,2.06019754,26056.0,26055.0,0.08]
[1693520321731,2.06019754,26056.0,26055.0,0.088]
[1693520321945,2.33939954,26056.0,26055.0,0.107]
[1693520322184,2.44747171,26056.0,26055.0,0.107]
[1693520322359,2.66607553,26056.0,26055.0,0.107]
[1693520322563,2.06019754,26056.0,26055.0,0.027]
[1693520322767,2.50399754,26056.0,26055.0,0.027]
[1693520322963,2.50399754,26056.0,26054.0,0.06]
[1693520323164,0.17794854,26055.0,26054.0,0.06]
[1693520323340,2.14268793,26055.0,26054.0,0.06]
[1693520323772,2.37288796,26055.0,26054.0,0.06]
[1693520323971,2.43288796,26055.0,26054.0,0.06]
[1693520324193,2.58668796,26055.0,26054.0,0.08]
[1693520324637,0.46814857,26055.0,26054.0,0.08]
[1693520324803,0.32224465,26055.0,26054.0,1.231454]
[1693520325033,0.23017017,26055.0,26054.0,1.231454]
[1693520325398,0.23017017,26055.0,26054.0,0.657727]
[1693520325859,0.13810366,26055.0,26054.0,0.655727]
[1693520326008,0.13810366,26055.0,26054.0,0.657727]
[1693520326808,0.14410366,26055.0,26054.0,0.655727]
[1693520327189,0.13810366,26055.0,26054.0,0.655727]
[1693520327397,0.13810366,26055.0,26054.0,0.674727]
[1693520328208,0.23017281,26055.0,26054.0,0.674727]
[1693520328638,0.23017281,26055.0,26054.0,0.682727]
[1693520329406,0.22517281,26055.0,26054.0,0.682727]
[1693520330543,0.09206915,26055.0,26054.0,0.682727]
[1693520331298,0.34810003,26057.0,26055.0,0.1]
[1693520331299,0.09206915,26057.0,26055.0,0.1]
[1693520331533,0.09206915,26058.0,26057.0,0.1]
[1693520331818,0.09206915,26058.0,26057.0,2.33196978]
[1693520333157,0.31439287,26059.0,26057.0,2.33196978]
[1693520333294,0.31439287,26059.0,26058.0,0.1]
[1693520333499,0.28939287,26059.0,26058.0,1.251276]
[1693520335111,0.51818716,26059.0,26058.0,0.1]
[1693520335312,0.610259,26059.0,26058.0,0.1]
[1693520335793,0.59694763,26059.0,26058.0,0.051]
[1693520336037,3.43541892,26059.0,26058.0,0.051]
[1693520336243,3.74586091,26059.0,26058.0,0.051]
[1693520336739,3.74586091,26059.0,26058.0,0.021]
[1693520336740,3.90166091,26059.0,26058.0,0.021]
[1693520337004,3.90166091,26059.0,26058.0,0.038]
[1693520337271,3.90166091,26059.0,26058.0,0.021]
[1693520337518,0.04,26057.0,26055.0,0.06]
[1693520337755,0.58175301,26056.0,26055.0,0.06]
[1693520337989,2.30880201,26056.0,26055.0,0.06]
[1693520338228,1.32931901,26056.0,26055.0,0.06]
[1693520338454,0.75363601,26056.0,26055.0,0.06]
[1693520338944,0.17795301,26056.0,26055.0,0.06]
[1693520339147,0.39875301,26056.0,26055.0,0.063]
[1693520339339,0.39875301,26056.0,26055.0,0.06]
[1693520339545,0.39875301,26056.0,26055.0,0.063]
[1693520339664,0.97443601,26056.0,26055.0,0.063]
[1693520339924,0.97443601,26056.0,26055.0,0.065]
[1693520340134,1.20900271,26056.0,26055.0,0.065]
[1693520340335,1.20900271,26056.0,26055.0,0.063]
[1693520340536,1.78468571,26056.0,26055.0,0.064]
[1693520340731,1.78468571,26056.0,26055.0,0.061]
[1693520340954,1.78468571,26056.0,26055.0,0.063]
[1693520341156,1.78468571,26056.0,26055.0,0.061]
[1693520341571,1.78468571,26056.0,26055.0,0.063]
[1693520344425,2.36036871,26056.0,26055.0,0.063]
[1693520350172,2.36036871,26056.0,26055.0,0.083]
[1693520350173,0.45093985,26056.0,26055.0,0.083]
[1693520350369,0.45093985,26056.0,26055.0,0.658705]
[1693520350370,0.41415206,26056.0,26055.0,0.658705]
[1693520350619,0.18406522,26056.0,26055.0,1.04579178]
[1693520350820,0.13804587,26056.0,26055.0,1.04579178]
[1693520351322,0.13804587,26056.0,26055.0,1.04379178]
[1693520351546,0.13804587,26056.0,26055.0,1.63949678]
[1693520351757,0.23007429,26056.0,26055.0,1.63849678]
[1693520351973,0.23007429,26056.0,26055.0,1.06279178]
[1693520352167,0.23007429,26056.0,26055.0,1.06379178]
[1693520352368,0.23007429,26056.0,26055.0,1.07179178]
[1693520352583,0.23007429,26056.0,26055.0,1.07079178]
[1693520352800,0.23007429,26056.0,26055.0,2.25909344]
[1693520353004,0.09202842,26056.0,26055.0,2.32797344]
[1693520353215,0.09202842,26056.0,26055.0,2.32875344]
[1693520353410,0.09202842,26056.0,26055.0,2.31151344]
[1693520353741,1.6520503,26056.0,26054.0,0.06]
[1693520353942,3.0902087,26056.0,26055.0,0.105]
[1693520354092,3.10800618,26056.0,26055.0,0.105]
[1693520354298,3.10800618,26056.0,26055.0,0.097]
[1693520354496,3.10800618,26056.0,26055.0,0.118]
[1693520355088,2.813791,26056.0,26052.0,0.08]
[1693520355297,3.10684959,26056.0,26055.0,0.002]
[1693520355502,3.12997448,26056.0,26055.0,0.04]
[1693520355910,3.12997448,26056.0,26055.0,0.002]
[1693520356125,0.4438,26051.0,26050.0,0.01098448]
[1693520356345,0.4438,26051.0,26046.0,0.06]
[1693520356346,0.4038,26047.0,26046.0,0.06]
[1693520356554,2.46424031,26047.0,26046.0,0.06]
[1693520356758,2.61474031,26047.0,26044.0,0.06]
[1693520356961,2.281946,26047.0,26046.0,0.06]
[1693520357163,2.53997484,26047.0,26046.0,0.06]
[1693520357367,2.84180586,26047.0,26046.0,0.06]
[1693520357567,2.84380586,26047.0,26046.0,0.063]
[1693520357769,2.84380586,26047.0,26046.0,0.06]
[1693520357770,3.07433016,26047.0,26046.0,0.06]
[1693520357971,2.84180586,26047.0,26046.0,0.06]
[1693520358175,3.48807513,26047.0,26046.0,0.063]
[1693520358349,3.19803367,26047.0,26046.0,0.063]
[1693520358558,2.8107595,26047.0,26046.0,0.063]
[1693520358755,2.7188411,26047.0,26046.0,0.063]
[1693520358994,1.1632771,26047.0,26046.0,0.063]
[1693520359200,1.1632771,26047.0,26046.0,0.066]
[1693520359614,0.3304,26047.0,26046.0,0.063]
[1693520359822,0.2105,26047.0,26046.0,0.08]
[1693520360029,0.2105,26047.0,26046.0,0.083]
[1693520360247,0.575825,26050.0,26046.0,0.006]
[1693520360465,0.0919184,26056.0,26055.0,0.08]
[1693520360680,0.85167579,26060.0,26058.0,0.08]
[1693520360681,0.0919184,26059.0,26058.0,0.08]
[1693520360890,0.22986666,26061.0,26060.0,0.08]
[1693520361096,0.28992142,26061.0,26060.0,0.08]
[1693520361299,0.84544516,26061.0,26060.0,0.08]
[1693520361508,0.98339342,26061.0,26060.0,0.08]
[1693520361716,0.84544516,26061.0,26060.0,0.08]
[1693520362125,0.98339342,26061.0,26060.0,0.08]
[1693520362328,0.86549342,26061.0,26060.0,0.08]
[1693520362527,0.86549342,26061.0,26060.0,0.081]
[1693520362854,0.92962627,26061.0,26060.0,0.081]
[1693520363232,1.06757453,26061.0,26060.0,0.081]
[1693520363466,1.64314653,26061.0,26060.0,0.083]
[1693520364087,1.50519827,26061.0,26060.0,0.083]
[1693520364258,1.64314653,26061.0,26060.0,0.083]
[1693520364398,2.08201902,26061.0,26060.0,0.083]
[1693520364605,2.87281737,26061.0,26060.0,0.001]
[1693520364813,3.47662491,26061.0,26060.0,0.081]
[1693520365010,3.56859043,26061.0,26060.0,0.08]
[1693520365450,3.56859043,26061.0,26060.0,0.081]
[1693520365668,3.33867665,26061.0,26060.0,0.081]
[1693520366117,0.70063258,26061.0,26060.0,0.08]
[1693520366345,1.38114585,26061.0,26060.0,0.08]
[1693520366617,2.70232148,26061.0,26060.0,0.083]
[1693520366792,2.70232148,26061.0,26060.0,0.081]
[1693520366996,2.70232148,26061.0,26060.0,0.083]
[1693520367198,2.56459152,26061.0,26060.0,0.083]
[1693520367524,2.9516783,26061.0,26060.0,0.083]
[1693520368677,3.48802125,26061.0,26060.0,0.003]
[1693520368880,3.30439504,26061.0,26060.0,0.003]
[1693520369436,3.12066106,26061.0,26060.0,0.003]
[1693520371582,3.27786106,26061.0,26060.0,0.003]
[1693520371810,3.47759919,26061.0,26060.0,0.003]
[1693520372228,3.24507237,26061.0,26060.0,0.003]
[1693520377133,3.27509777,26061.0,26060.0,0.003]
[1693520377632,3.66237194,26061.0,26060.0,0.003]
[1693520378063,3.43245816,26061.0,26060.0,0.003]
[1693520378840,3.29123538,26061.0,26060.0,0.003]
[1693520379117,3.99008353,26061.0,26060.0,0.003]